[Event "FIDE WSCC 65 2022"]
[Site "Assisi"]
[Date "2022.11.18"]
[Round "4.1"]
[White "Maryasin, Boris"]
[Black "Nunn, John D M"]
[Result "0-1"]
[ECO "E99"]
[WhiteElo "2258"]
[BlackElo "2580"]
[Annotator "TA"]
[PlyCount "66"]
[EventDate "2022.11.14"]
[EventType "swiss"]
[EventCountry "ITA"]
[SourceTitle "playchess.com"]
[Source "ChessBase"]
[SourceQuality "1"]
[TimeControl "40/5400+30:1800+30"]

{[%evp 21,66,58,50,0,60,49,56,52,49,50,65,25,116,25,20,19,11,1,12,-2,14,0,0,0,0,0,9,-140,-143,-135,-135,-137,-145,-118,-122,-229,-204,-251,-175,-241,-263,-476,-467,-666,-636,-611,-512]} 1. d4 {[%emt 0:00:04]} Nf6 {[%emt 0:00:11]} 2. c4 {[%emt 0:00:26]} g6 {[%emt 0:00:09]} 3. Nc3 {[%emt 0:00:05]} Bg7 {[%emt 0:00:06]} 4. e4 {[%emt 0:00:05]} d6 {[%emt 0:00:07]} 5. Nf3 {[%emt 0:00:10]} O-O {[%emt 0:00:09]} 6. Be2 {[%emt 0:00:17]} e5 {[%emt 0:00:21]} 7. O-O {[%emt 0:00:05]} Nc6 {[%emt 0:00:08]} 8. d5 {[%emt 0:00:08]} Ne7 {[%emt 0:00:06]} 9. Ne1 {[%emt 0:00:11]} Ne8 {[%emt 0:03:02]} 10. Nd3 {[%emt 0:00:34] is now more promising than 10.Be3.} f5 {[%emt 0:00:12]} 11. f3 {[%emt 0:00:29]} Nf6 {[%emt 0:00:33]} 12. c5 {[%emt 0:00:54] E99: King's Indian: Classical Main Line: 9 Ne1 Nd7 10 f3 f5.} (12. a3 $14) 12... f4 {[%emt 0:18:11]} ({Black should try} 12... c6 $11) 13. b4 {[%emt 0:00:26]} g5 {[%emt 0:00:30]} 14. a4 {[%emt 0:01:01][%cal Ba2a4,Ba4a5][%mdl 32] White is slightly better.} Ng6 {[%emt 0:00:24]} 15. a5 {[%emt 0:00:30]} Rf7 {[%emt 0:00:49]} 16. c6 {[%emt 0:08:55] [#]} a6 $146 {[%emt 0:07:10]} (16... bxc6 $11 17. dxc6 a6) ({Predecessor:} 16... h5 17. cxb7 Bxb7 18. b5 Bc8 19. Nf2 Bh6 20. Ra4 Rg7 21. h3 Nh4 22. Bd2 Kh8 {0-1 (33) Granda Zuniga,J (2640)-Milos,G (2593) Quito 2012}) 17. Nf2 {[%emt 0:02:45]} (17. cxb7 $1 $16 Bxb7 18. b5) 17... bxc6 $11 {[%emt 0:04:46]} 18. dxc6 {[%emt 0:00:34]} Be6 {[%emt 0:00:16] Prevents Bc4.} 19. Kh1 {[%emt 0:02:12]} Ne7 {[%emt 0:10:00]} 20. b5 {[%emt 0:05:18]} h5 {[%emt 0:01:44]} 21. g3 {[%emt 0:04:20]} axb5 {[%emt 0:03:06]} 22. Bxb5 {[%emt 0:01:05]} g4 {[%emt 0:06:32] ...fxg3 is the strong threat.} 23. gxf4 {[%emt 0:05:47]} exf4 {[%emt 0:00:18]} 24. Bxf4 {[%emt 1:06:09]} (24. Ne2 $1 $11 {keeps the balance.} Ng6 25. Nd4 (25. Nxf4 $2 Nxf4 26. Bxf4 Nh7 $19)) 24... Nh7 $17 {[%emt 0:43:40][%csl LRc3,LRf4][%cal Bf6h7,Bh7g5,Bg5f3,Bf3d4][%mdl 32]} 25. Bd2 {[%emt 0:00:00][%cal Rf3g4]} Rxf3 {[%emt 0:00:00]} 26. Nd3 {[%emt 0:00:00] [#]} Rxf1+ {[%emt 0:00:00]} 27. Qxf1 {[%emt 0:00:00] [#]} Ng6 {[%emt 0:00:00] And now ...Ng5 would win.} 28. Ra3 {[%emt 0:00:00]} (28. Ra4 $17) 28... Ng5 $19 {[%emt 0:00:00] Threatens to win with ...Nf3.} 29. Ne1 {[%emt 0:00:00]} d5 {[%emt 0:00:00] Inhibits Bc4. aiming for ...Qd6.} 30. Qe2 {[%emt 0:00:00]} (30. a6 {was worth a try.}) 30... Kh8 {[%emt 0:00:00]} 31. Ng2 $2 {[%emt 0:00:00]} (31. a6 d4 32. Na2) 31... Nf3 {[%emt 0:00:00] Strongly threatening ...Qd6. Black is clearly winning.} ({Avoid the trap} 31... Qd6 $2 32. Bxg5 Qxa3 33. Nxd5 Qa1+ 34. Qe1 Qxa5 35. Qxa5 Rxa5 36. Bf1 Bxd5 37. exd5) 32. exd5 {[%emt 0:00:59]} (32. Nxd5 $142 Bxd5 33. exd5 Qxd5 34. Ne3 (34. Nf4 $2 Nxf4 35. Bxf4 Nd4+ 36. Qg2 Qxb5 $19) 34... Qxd2 35. Qxd2 Nxd2 36. Ra4) 32... Qd6 {[%emt 0:00:00][%csl Gf3][%cal Rd6h2]} 33. Ne1 {[%emt 0:02:38]} Nd4 {[%emt 0:00:00] Weighted Error Value: White=0.57/Black=0.16 (very precise)} 0-1

[Event "FIDE WSCC 65 2022"]
[Site "Assisi"]
[Date "2022.11.18"]
[Round "4.2"]
[White "Sideifzade, Fikret"]
[Black "Gaprindashvili, Nona"]
[Result "1/2-1/2"]
[ECO "A44"]
[WhiteElo "2391"]
[BlackElo "2268"]
[Annotator "TA"]
[PlyCount "167"]
[EventDate "2022.11.14"]
[EventType "swiss"]
[EventCountry "ITA"]
[SourceTitle "playchess.com"]
[Source "ChessBase"]
[SourceQuality "1"]
[TimeControl "40/5400+30:1800+30"]

{[%evp 9,167,80,118,81,81,81,85,82,80,75,68,33,48,54,64,62,100,47,165,164,183,171,147,130,137,119,137,110,115,122,219,218,219,144,149,59,173,131,117,92,81,59,87,73,120,0,26,23,17,35,147,154,160,144,166,171,197,195,190,176,189,154,167,148,152,130,204,190,190,190,190,189,191,175,161,123,123,123,123,123,244,244,244,244,242,220,244,244,244,244,1305,1279,822,654,1940,1837,1872,911,1356,1845,1710,1575,1577,1704,1689,527,1708,1582,1201,1689,1297,563,934,899,789,527,1253,85,1481,1385,1647,1215,1497,1497,1476,1464,1304,1228,802,0,949,0,978,939,550,8,8,8,465,193,193,73,72,73,73,74,72,74,73,73,74,74,74,74,74,79,79,0,0,0]} 1. d4 {[%emt 0:00:02]} c5 {[%emt 0:00:10]} 2. d5 {[%emt 0:00:21]} e5 {[%emt 0:00:02]} 3. e4 {[%emt 0:01:01]} d6 {[%emt 0:00:09]} 4. Nc3 {[%emt 0:00:13]} g6 {[%emt 0:00:12]} 5. Be2 {[%emt 0:03:54] [#]} Nh6 $146 {[%emt 0:00:38]} ({Predecessor:} 5... Bg7 6. Nf3 Ne7 7. Nd2 Nd7 8. a4 O-O 9. a5 f5 10. h4 Nf6 11. h5 Bd7 12. hxg6 hxg6 13. Nc4 Qc7 14. Bg5 {1-0 (45) Karthik,V (2494)-Kulkarni,R (2298) Ho Chi Minh City 2019}) 6. g4 {[%emt 0:07:43] A44: Semi-Benoni.} f6 {[%emt 0:01:25]} 7. h4 {[%emt 0:05:01][%cal Bh2h4,Bh4h5][%mdl 32]} Nf7 {[%emt 0:01:31]} 8. h5 {[%emt 0:10:54] White is better.} Na6 {[%emt 0:07:20]} 9. a4 {[%emt 0:13:48]} Nc7 {[%emt 0:00:51]} 10. f3 {[%emt 0:01:31]} Bd7 {[%emt 0:06:14]} 11. Bd3 {[%emt 0:01:48]} a6 {[%emt 0:01:15]} 12. Qe2 {[%emt 0:01:01]} b6 {[%emt 0:01:48]} 13. Rb1 {[%emt 0:03:19]} (13. hxg6 $16 hxg6 14. Rxh8 Nxh8 15. Be3) 13... g5 {[%emt 0:10:50]} (13... b5 $14) 14. b4 $18 {[%emt 0:01:36]} Be7 {[%emt 0:00:23]} 15. Kf2 {[%emt 0:01:28]} O-O {[%emt 0:00:31][%cal Ob6b5]} 16. Be3 {[%emt 0:01:08]} Qc8 {[%emt 0:01:42]} 17. Qd2 {[%emt 0:05:34]} Qe8 {[%emt 0:05:21]} 18. Nge2 {[%emt 0:04:10][%cal Bg1e2,Be2g3,Bg3f5][%mdl 32]} b5 {[%emt 0:01:31]} 19. Ng3 {[%emt 0:00:30]} cxb4 {[%emt 0:01:36]} (19... bxa4 $16 20. bxc5 dxc5) 20. Rxb4 {[%emt 0:00:20]} bxa4 {[%emt 0:12:19]} 21. Nf5 {[%emt 0:02:17]} (21. Rb7 $6 Qc8 22. Rb2 (22. Rhb1 Nb5 $11) 22... a3 $16) 21... Bd8 {[%emt 0:02:12]} 22. Rhb1 {[%emt 0:02:45] White is much more active. The black rooks are badly placed.} (22. Rb7 $16) 22... a3 {[%emt 0:06:43]} (22... Nb5 $1 $14) 23. R4b3 {[%emt 0:05:33]} Nb5 {[%emt 0:01:10]} 24. Na2 {[%emt 0:00:22]} (24. Bxb5 $6 axb5 25. Na2 Bxf5 26. gxf5 Ba5 $11) 24... Bxf5 {[%emt 0:04:31]} 25. gxf5 {[%emt 0:03:33]} Nh6 {[%emt 0:02:30]} 26. Rh1 {[%emt 0:00:13]} Rf7 {[%emt 0:00:39]} ({Black should play} 26... Kh8) 27. Bxb5 {[%emt 0:04:27]} (27. c4 Nd4 28. Bxd4 (28. Rxa3 Bb6 $11) 28... exd4 $14) (27. Qb4 $16) 27... axb5 $11 {[%emt 0:00:03]} 28. Qb4 {[%emt 0:00:17][%csl LRa3,LRb5,LRd6]} Rc7 {[%emt 0:01:02]} 29. c3 {[%emt 0:00:10]} Nf7 {[%emt 0:03:55]} ({Better is} 29... Rb7 $14) 30. Qxb5 $16 {[%emt 0:02:32]} Qxb5 {[%emt 0:00:02]} 31. Rxb5 {[%emt 0:00:02]} Kf8 {[%emt 0:08:54]} 32. Rhb1 {[%emt 0:00:32]} Ke8 {[%emt 0:03:17]} 33. Ke2 {[%emt 0:00:58]} Rcc8 {[%emt 0:01:13]} 34. Kd3 {[%emt 0:01:41]} Bc7 {[%emt 0:03:47]} 35. c4 {[%emt 0:02:22]} (35. Rb7 $6 Kd7 $16) 35... Kd7 {[%emt 0:04:10]} 36. R5b3 {[%emt 0:02:34]} Rg8 {[%emt 0:02:40]} 37. Rg1 {[%emt 0:02:14][%cal Bb1g1,Bg1g2,Bg2a2][%mdl 32]} (37. Rb7 $6 Kc8 $14) 37... Kc8 {[%emt 0:00:53]} (37... Rgb8 $16 38. Rgb1 Nd8 39. Rxb8 Bxb8) 38. Bc1 {[%emt 0:02:20]} Kd7 {[%emt 0:03:17] [#]} 39. Rg2 $1 {[%emt 0:05:21]} (39. Rxa3 $2 Rxa3+ 40. Bxa3 Ra8 $19) (39. Bxa3 $6 Rgb8 40. Kc2 Rxb3 41. Kxb3 Rb8+ 42. Kc2 Ra8 $16) 39... Rgb8 {[%emt 0:01:46]} 40. Rxb8 {[%emt 0:04:00]} (40. Rxa3 $2 Rxa3+ 41. Bxa3 Rb3+ 42. Nc3 Rxa3 $19) 40... Rxb8 {[%emt 0:00:43]} 41. Nc3 {[%emt 0:03:05]} Ba5 {[%emt 0:10:00]} 42. Nb5 {[%emt 0:08:32]} ({Don't take} 42. Bxa3 $6 Rb3 43. Bb2 g4 44. fxg4 Ng5 $14) 42... Bb4 {[%emt 0:00:20]} 43. Ra2 {[%emt 0:01:21]} ({Avoid the trap} 43. Nxa3 $2 Bxa3 44. Rc2 Rb3+ 45. Ke2 g4 46. fxg4 Bxc1 47. Rxc1 Ra3 $19) 43... Bc5 {[%emt 0:01:25]} 44. Be3 {[%emt 0:03:41] [#] Black must now prevent Bxc5.} Bxe3 {[%emt 0:09:05]} (44... Ra8 $16 {was necessary.} 45. Bxc5 dxc5 46. Rxa3 Rxa3+ 47. Nxa3 Nh6) 45. Kxe3 $18 {[%emt 0:00:11]} Ra8 {[%emt 0:00:08]} 46. Rxa3 {[%emt 0:01:13]} Rxa3+ {[%emt 0:00:03]} 47. Nxa3 {[%emt 0:00:09][%mdl 4096] Endgame KN-KN} Nd8 {[%emt 0:00:35]} 48. Nc2 {[%emt 0:03:19]} Nb7 {[%emt 0:01:24]} 49. Kd2 {[%emt 0:00:25] Threatens to win with Ne3.} Nc5 $2 {[%emt 0:00:05]} (49... g4 50. fxg4 Nc5) 50. Ne3 {[%emt 0:00:12]} Nb3+ {[%emt 0:01:32]} 51. Kd3 {[%emt 0:14:17] aiming for Ng4.} Ke7 {[%emt 0:02:17]} 52. Ng4 {[%emt 0:00:00]} Nd4 {[%emt 0:06:57]} 53. Nh2 {[%emt 0:00:00]} (53. c5 $142 dxc5 54. Kc4) 53... Nb3 {[%emt 0:02:28]} 54. h6 {[%emt 0:00:00]} Nc5+ {[%emt 0:00:13]} 55. Kc2 {[%emt 0:00:00]} Kd8 {[%emt 0:00:02]} 56. Ng4 {[%emt 0:00:00]} Nd7 {[%emt 0:00:06]} 57. Nf2 {[%emt 0:00:00]} (57. c5 $142 dxc5 58. Kd3) 57... Kc7 {[%emt 0:00:12]} 58. Nd3 {[%emt 0:00:00]} Kb6 {[%emt 0:00:40]} 59. Kb3 {[%emt 0:00:00]} Nb8 {[%emt 0:01:44]} 60. Nb2 {[%emt 0:01:30]} (60. c5+ $142 dxc5 61. Kc4) 60... Na6 {[%emt 0:00:19]} 61. Na4+ {[%emt 0:00:17]} Kc7 {[%emt 0:00:21]} 62. Kc3 {[%emt 0:01:01]} Kd7 {[%emt 0:01:02]} 63. Nb2 $2 {[%emt 0:00:33]} (63. c5 $18 {is the precise move to win.} dxc5 64. Kc4) 63... Kc7 $2 {[%emt 0:00:24][%mdl 8192]} (63... g4 $16 64. Kd2 (64. fxg4 Nc5 $16) 64... gxf3) 64. Nd3 {[%emt 0:00:09]} Kb6 {[%emt 0:00:08]} 65. Nf2 {[%emt 0:01:23] Threatening mate with Ng4.} Nc5 {[%emt 0:00:02]} 66. Ng4 {[%emt 0:00:11]} Nd7 {[%emt 0:00:11]} 67. Kb4 {[%emt 0:00:02]} Ka6 {[%emt 0:03:02]} 68. Nf2 {[%emt 0:01:00]} Nc5 {[%emt 0:00:00]} 69. Kc3 $2 {[%emt 0:00:29]} (69. Ka3 $18 g4 70. Nxg4) 69... Ka5 $2 {[%emt 0:00:00][%mdl 8192]} (69... Kb6 $11) 70. Nd3 $2 {[%emt 0:00:17]} (70. Ng4 $18 Nd7 71. c5 dxc5 72. Kc4) 70... Nd7 $2 {[%emt 0:00:00][%mdl 8192]} (70... Nxd3 $11 71. Kxd3 Kb4) 71. Nc1 {[%emt 0:00:32]} Kb6 {[%emt 0:00:39]} 72. Kb4 $2 {[%emt 0:00:16]} (72. Nb3 $18) 72... Nc5 $11 {[%emt 0:00:18]} 73. Nb3 {[%emt 0:03:20]} Na6+ $2 {[%emt 0:00:24][%mdl 8192]} (73... Nd3+ $1 $11 {and Black has nothing to worry.} 74. Kc3 Ne1) 74. Kc3 {[%emt 0:00:00]} (74. Ka4 $142 Nb8 75. c5+ dxc5 76. Nd2) 74... Kc7 $18 {[%emt 0:00:22]} 75. Nc1 {[%emt 0:00:00]} (75. Kd3 $18) 75... g4 {[%emt 0:00:17]} 76. fxg4 {[%emt 0:00:00] Strongly threatening Nd3.} Nc5 {[%emt 0:00:00]} 77. Kd2 {[%emt 0:00:00] Hoping for Ke3.} Nxe4+ {[%emt 0:00:02]} 78. Ke3 {[%emt 0:00:00]} Ng5 {[%emt 0:00:16]} 79. Ne2 {[%emt 0:00:10]} Nf7 {[%emt 0:00:34]} 80. Ng3 {[%emt 0:00:12]} Kd7 {[%emt 0:00:24]} 81. Ne4 {[%emt 0:01:21]} Ke7 {[%emt 0:00:17]} 82. Kf3 {[%emt 0:00:39] And now Kg3 would win.} Nxh6 {[%emt 0:00:10]} 83. c5 {[%emt 0:01:11]} ({White should try} 83. Kg3 $16) 83... dxc5 $11 {[%emt 0:00:40]} 84. Nxc5 {[%emt 0:00:31] Weighted Error Value: White=0.33/Black=0.26 (precise)} 1/2-1/2

[Event "FIDE WSCC 65 2022"]
[Site "Assisi"]
[Date "2022.11.18"]
[Round "4.3"]
[White "Koehler, Gerhard"]
[Black "Jansa, Vlastimil"]
[Result "0-1"]
[ECO "A37"]
[WhiteElo "2198"]
[BlackElo "2390"]
[Annotator "TA"]
[PlyCount "90"]
[EventDate "2022.11.14"]
[EventType "swiss"]
[EventCountry "ITA"]
[SourceTitle "playchess.com"]
[Source "ChessBase"]
[SourceQuality "1"]
[TimeControl "40/5400+30:1800+30"]

{[%evp 12,90,16,18,16,17,18,5,21,11,13,12,20,14,20,23,55,54,49,48,50,50,51,32,53,0,0,0,0,-14,-18,-35,-40,-69,-28,-30,-39,-84,-61,-68,-56,-59,-66,-91,-89,-104,-56,-68,-69,-122,-87,-149,-115,-157,-74,-198,-165,-187,-155,-358,-235,-235,-235,-243,-232,-319,-318,-347,-344,-328,-348,-343,-335,-475,-463,-442,-451,-418,-239,-647,-663]} 1. c4 {[%emt 0:00:01] Ribli,Z} g6 {[%emt 0:00:30]} 2. Nc3 {[%emt 0:00:35]} c5 {[%emt 0:00:20]} 3. g3 {[%emt 0:00:23]} Bg7 {[%emt 0:00:09]} 4. Bg2 {[%emt 0:00:14]} Nc6 {[%emt 0:00:07]} 5. a3 {[%emt 0:00:42]} a5 {[%emt 0:00:39]} 6. Nf3 {[%emt 0:00:20]} e5 {[%emt 0:00:30]} 7. d3 {[%emt 0:00:41]} Nge7 {[%emt 0:00:52] 7...Nge7 scores better than 7...d6. A37: Symmetrical English vs ...g6: 4 Bg2 Bg7 5 Nf3.} 8. Nd2 {[%emt 0:00:55][%cal Bf3d2,Bd2f1,Bf1e3,Be3d5][%mdl 32]} d6 {[%emt 0:03:54]} 9. Nf1 {[%emt 0:00:19]} h5 {[%emt 0:02:11] The position is equal.} 10. h4 {[%emt 0:00:29]} O-O {[%emt 0:09:41]} 11. Ne3 {[%emt 0:00:37]} Rb8 {[%emt 0:03:04]} 12. Rb1 {[%emt 0:04:32]} Be6 {[%emt 0:11:45]} 13. Ned5 {[%emt 0:05:59]} Qd7 {[%emt 0:04:54] [#]} 14. Bg5 $146 {[%emt 0:02:48]} ({Predecessor:} 14. Qa4 b5 15. Nxe7+ Nxe7 16. Nxb5 d5 17. b3 e4 18. O-O exd3 19. exd3 dxc4 20. dxc4 {0-1 (36) Pigusov,E (2622)-Horvath,A (2476) Kallithea 2002 CBM 092 [Ribli,Z]}) 14... f6 {[%emt 0:00:46][%cal Bf7f6,Bf6f5,Bf5f4][%mdl 32]} 15. Bd2 {[%emt 0:00:30]} Kh7 {[%emt 0:06:52]} 16. Qa4 {[%emt 0:06:48]} Rfd8 {[%emt 0:03:15]} 17. Nxe7 {[%emt 0:25:20]} Qxe7 {[%emt 0:02:08]} 18. Nd5 {[%emt 0:02:31]} (18. Bxc6 $14 bxc6 19. Qxc6) 18... Qf7 $1 $11 {[%emt 0:02:52][%cal Ob7b5]} 19. Nb6 {[%emt 0:05:25]} ({Not} 19. Bxa5 $2 b5 20. cxb5 Nxa5 $19) 19... f5 $1 {[%emt 0:07:11]} 20. O-O {[%emt 0:07:03]} f4 {[%emt 0:03:17]} 21. Qd1 {[%emt 0:07:20]} Rf8 {[%emt 0:03:08]} 22. b4 {[%emt 0:06:15]} axb4 {[%emt 0:01:48]} 23. axb4 {[%emt 0:00:06]} Nd4 {[%emt 0:05:19]} 24. Nd5 {[%emt 0:02:46][%cal Bb6d5,Bd5c3,Bc3e4][%mdl 32]} Bg4 {[%emt 0:03:42]} 25. f3 {[%emt 0:02:07]} Be6 $36 {[%emt 0:00:22][%mdl 2048] Black has the initiative. Black has more active pieces.} 26. Nc3 {[%emt 0:00:51]} Bh6 {[%emt 0:06:11]} 27. gxf4 {[%emt 0:02:45]} exf4 {[%emt 0:01:01]} 28. Ne4 {[%emt 0:00:08] [#]} Qe7 {[%emt 0:01:22]} (28... Bf5 $1 $17) 29. bxc5 $15 {[%emt 0:00:51]} dxc5 {[%emt 0:00:07]} 30. Qe1 {[%emt 0:00:59]} (30. Bc3 $15) 30... b6 {[%emt 0:03:33]} 31. Qf2 {[%emt 0:03:13] [#]} ({White should try} 31. Bc3) 31... Bf5 $1 $17 {[%emt 0:02:32]} 32. Bc3 {[%emt 0:00:43]} Bg7 {[%emt 0:01:33]} (32... Bxe4 $142 33. fxe4 Bg7) 33. Rfc1 {[%emt 0:01:55]} (33. Ng5+ $17 Kg8 34. Rfe1) 33... Bxe4 $19 {[%emt 0:01:42]} 34. dxe4 {[%emt 0:00:16]} Bf6 {[%emt 0:01:37]} 35. Be1 $2 {[%emt 0:00:23] Now White is beyond hope.} (35. Bh3 $17 {was called for.}) 35... Nc6 {[%emt 0:01:02][%cal Bd4c6,Bc6e5,Be5c4,Bc4e3][%mdl 32] And now ...Bd4 would win.} 36. Kh2 {[%emt 0:00:32]} Bd4 {[%emt 0:00:23]} 37. Qf1 {[%emt 0:00:10]} Ne5 {[%emt 0:01:01]} 38. Bf2 {[%emt 0:02:11]} Rfd8 {[%emt 0:01:07]} 39. Rc2 {[%emt 0:00:20]} Qf7 {[%emt 0:01:28]} 40. Rbc1 {[%emt 0:01:28]} Ra8 {[%emt 0:01:13]} 41. Bh3 {[%emt 0:36:11]} Ra4 {[%emt 0:31:02][%cal Re5c4]} 42. Qd1 {[%emt 0:01:31]} (42. Bxd4 $142 Rxd4 43. Qg2) 42... Nxc4 {[%emt 0:00:00]} 43. Bxd4 {[%emt 0:00:00]} Rxd4 {[%emt 0:00:00]} 44. Qg1 {[%emt 0:00:00]} Qf6 {[%emt 0:00:00]} (44... Ne3 $142 45. Rb2 Nc4) 45. Qf2 $2 {[%emt 0:00:00]} (45. Qg5 Qxg5 46. hxg5) 45... Ne3 {[%emt 0:00:00] Weighted Error Value: White=0.41/Black=0.19 (very precise)} 0-1

[Event "FIDE WSCC 65 2022"]
[Site "Assisi"]
[Date "2022.11.18"]
[Round "4.4"]
[White "Birnboim, Nathan"]
[Black "Renman, Nils-Gustaf"]
[Result "1/2-1/2"]
[ECO "D02"]
[WhiteElo "2361"]
[BlackElo "2320"]
[Annotator "TA"]
[PlyCount "60"]
[EventDate "2022.11.14"]
[EventType "swiss"]
[EventCountry "ITA"]
[SourceTitle "playchess.com"]
[Source "ChessBase"]
[SourceQuality "1"]
[TimeControl "40/5400+30:1800+30"]

{[%evp 15,60,-20,0,0,9,12,13,-2,20,15,20,22,74,65,67,67,65,64,65,72,72,45,74,67,79,43,71,56,50,53,50,42,63,64,60,0,0,7,34,34,41,42,35,24,56,65,34]} 1. d4 {[%emt 0:00:10]} Nf6 {[%emt 0:00:18]} 2. Nf3 {[%emt 0:00:51]} d5 {[%emt 0:00:43]} 3. Bf4 {[%emt 0:00:35]} c5 {[%emt 0:00:42]} 4. e3 {[%emt 0:00:56]} Nc6 {[%emt 0:00:35]} 5. c3 {[%emt 0:11:35]} Qb6 {[%emt 0:05:10]} 6. Qb3 {[%emt 0:01:05]} c4 {[%emt 0:00:48]} 7. Qxb6 {[%emt 0:01:57]} axb6 {[%emt 0:00:07]} 8. Na3 {[%emt 0:11:24]} Ra5 {[%emt 0:13:02][%cal Oe7e5]} 9. Bc7 {[%emt 0:08:00] Against e5. D02: 1 d4 d5 2 Nf3 sidelines, including 2...Nf6 3 g3 and 2...Nf6 3 Bf4.} e6 {[%emt 0:01:03]} 10. Nc2 {[%emt 0:10:47]} ({But not} 10. Bxb6 Ra6 11. Bc5 Bxc5 12. dxc5 Ne4 $15) 10... Kd7 {[%emt 0:03:52]} 11. Bf4 {[%emt 0:05:07] The position is equal.} ({Reject} 11. Bxb6 Rb5 12. Ne5+ Nxe5 13. dxe5 Rxb2 14. exf6 Rxc2 $17) 11... Ne4 {[%emt 0:03:27]} 12. Nd2 {[%emt 0:02:42]} g5 {[%emt 0:13:21] [#] aiming for ...Nxd2.} 13. Bg3 $146 {[%emt 0:01:21] Nxe4 is the strong threat.} ({Predecessor:} 13. Nxe4 gxf4 14. Nf6+ Ke7 15. Nh5 fxe3 16. Nxe3 b5 17. a3 b4 18. cxb4 Nxb4 19. O-O-O {0-1 (35) Tyutyunnik,R-Lorente Penalva,D LSS email 2007}) 13... f5 {[%emt 0:00:19]} (13... Nxd2 $11 {keeps the balance.} 14. Kxd2 h5) 14. Nxe4 $16 {[%emt 0:01:42]} fxe4 {[%emt 0:01:16]} 15. f3 {[%emt 0:02:11]} exf3 {[%emt 0:00:25]} 16. gxf3 {[%emt 0:00:02]} Bd6 {[%emt 0:00:31]} 17. Rg1 {[%emt 0:03:48]} h6 {[%emt 0:00:58]} 18. Be2 {[%emt 0:03:46]} b5 {[%emt 0:03:58]} 19. a3 {[%emt 0:00:27]} Ra8 {[%emt 0:00:31]} 20. O-O-O {[%emt 0:00:54]} Bxg3 {[%emt 0:00:29]} 21. hxg3 {[%emt 0:00:20]} Kd6 {[%emt 0:00:36]} 22. e4 {[%emt 0:02:02]} Bd7 {[%emt 0:00:30][%cal Bc8d7,Bd7e8,Be8g6][%mdl 32]} 23. Ne3 {[%emt 0:01:05]} Raf8 {[%emt 0:00:51]} 24. Ng4 {[%emt 0:03:06]} Kc7 {[%emt 0:02:22]} 25. Rh1 {[%emt 0:03:22]} (25. e5 $1 $14) 25... h5 $11 {[%emt 0:03:42]} 26. Ne3 {[%emt 0:00:08]} Ne7 {[%emt 0:00:40]} 27. e5 {[%emt 0:06:55]} Be8 {[%emt 0:00:56]} 28. Kd2 {[%emt 0:01:34]} Bg6 {[%emt 0:00:48]} 29. Rdf1 {[%emt 0:00:28]} Rh7 {[%emt 0:07:39]} 30. f4 {[%emt 0:17:10]} g4 {[%emt 0:35:51] Weighted Error Value: White=0.09 (flawless) /Black=0.13 (very precise)} 1/2-1/2